bitfinex-derivatives/quotes_ETHF0:USTF0_20250212
["timestamp","ask_amount","ask_price","bid_price","bid_amount"]
[1739402678645,0.00547955,2736.7,2736.5,0.73074]
[1739402678846,0.00547955,2736.7,2736.3,2.1513]
[1739402679040,0.00547955,2736.7,2736.6,0.73072]
[1739402679245,0.00547955,2736.7,2736.3,2.1513]
[1739402679448,0.00547955,2736.7,2736.5,0.73073]
[1739402679643,0.00547955,2736.7,2736.3,2.1513]
[1739402679849,0.00547955,2736.7,2736.4,0.73076]
[1739402680049,0.00547955,2736.7,2736.6,0.73072]
[1739402681154,0.00547955,2736.7,2736.3,5.3591]
[1739402681654,0.00547955,2736.7,2736.6,0.73072]
[1739402681854,0.00547955,2736.7,2736.6,3.93852]
[1739402682446,0.00547955,2736.7,2736.6,0.73072]
[1739402682646,0.00547955,2736.7,2736.6,3.93852]
[1739402684950,9.55e-06,2736.7,2736.6,9.93852]
[1739402685149,5.81409888,2738.2,2736.6,3.2078]
[1739402685356,3.94019888,2737.3,2736.8,3.2078]
[1739402685555,3.94019888,2737.9,2736.8,3.2078]
[1739402685852,3.94019888,2737.9,2737.0,1.82649]
[1739402686054,3.2078,2737.5,2737.4,0.73049]
[1739402686363,1.8264,2737.3,2736.4,3.93857]
[1739402686558,1.8264,2737.3,2736.4,3.93856]
[1739402686559,3.94019888,2736.7,2736.4,3.93856]
[1739402686758,3.3139,2736.6,2736.4,3.93856]
[1739402686961,3.3139,2736.6,2736.5,0.73075]
[1739402687552,3.3139,2736.6,2736.0,1.1558]
[1739402687758,3.94019888,2736.3,2736.0,1.88666]
[1739402687962,3.94019888,2736.3,2736.1,0.73085]
[1739402688161,3.94019888,2736.3,2736.0,1.88667]
[1739402688361,3.94019888,2736.3,2736.1,0.73084]
[1739402688660,3.94019888,2736.3,2736.0,1.88668]
[1739402688861,3.94019888,2736.3,2736.0,1.1558]
[1739402689054,3.94019888,2736.3,2736.1,0.73085]
[1739402689255,3.94019888,2736.3,2736.0,1.1558]
[1739402689561,3.2078,2736.1,2735.2,4.3014]
[1739402689762,3.94019888,2735.9,2735.7,0.73095]
[1739402689957,3.94567843,2735.9,2735.8,0.73094]
[1739402690261,0.00547955,2735.9,2735.8,0.73094]
[1739402690564,4.67659843,2735.9,2735.3,0.73105]
[1739402690754,1.1446,2735.8,2735.5,0.73101]
[1739402690955,1.1446,2735.8,2735.4,0.73103]
[1739402691162,0.00547955,2735.9,2735.2,3.2078]
[1739402691362,0.00547955,2735.9,2735.7,0.73095]
[1739402692561,0.00547955,2735.9,2735.8,0.73094]
[1739402693160,0.00547955,2735.9,2735.6,3.2078]
[1739402693466,0.00547955,2735.9,2735.7,0.73096]
[1739402693767,0.00547955,2735.9,2735.6,3.2078]
[1739402693968,0.00547955,2735.9,2735.7,0.73095]
[1739402694261,0.00547955,2735.9,2735.6,3.2078]
[1739402694459,3.94567843,2735.9,2735.3,3.2078]
[1739402694960,1.0868,2735.8,2735.3,3.2078]
[1739402695163,1.0868,2735.8,2735.6,0.73098]
[1739402695364,1.0868,2735.8,2735.3,3.2078]
[1739402695562,1.0868,2735.8,2735.4,0.73103]
[1739402696063,1.0868,2735.8,2734.9,1.8279]
[1739402696064,3.94019888,2735.6,2735.0,3.2078]
[1739402696265,3.94019888,2735.6,2735.0,4.3328]
[1739402696464,3.94019888,2735.6,2735.1,1.1171]
[1739402696665,3.2078,2735.4,2735.1,1.1171]
[1739402696966,0.73116,2735.0,2734.5,2.97336]
[1739402697171,2.153,2734.9,2734.5,0.73127]
[1739402697361,3.94758,2734.9,2734.5,0.73127]
[1739402697565,3.2164,2734.9,2734.5,0.73127]
[1739402698058,7.14799888,2734.6,2734.1,3.2078]
[1739402698468,7.14799888,2734.6,2734.2,0.73136]
[1739402698667,7.14799888,2734.6,2734.1,3.2078]
[1739402698868,7.14799888,2734.6,2734.2,0.73136]
[1739402699164,3.94019888,2734.3,2733.7,3.2078]
[1739402699667,0.00547955,2734.3,2734.2,0.73136]
[1739402700569,7.14799888,2735.2,2735.1,0.73112]
[1739402700768,9.42839888,2735.5,2735.1,0.73112]
[1739402701065,5.07089888,2735.5,2734.9,3.2078]
[1739402701271,3.2078,2735.0,2734.3,1.1236]
[1739402701458,3.94019888,2734.8,2734.4,0.73129]
[1739402701664,3.94019888,2734.8,2734.3,1.1236]
[1739402702470,3.94019888,2734.8,2734.6,0.73126]
[1739402702667,3.94019888,2734.8,2734.3,1.1236]
[1739402702869,1.15517955,2734.9,2734.3,1.1236]
[1739402703065,1.15517955,2734.9,2734.8,0.7312]
[1739402703066,0.00547955,2734.9,2734.8,0.7312]
[1739402703763,0.00547955,2734.9,2734.7,0.73122]
[1739402703963,0.00547955,2734.9,2734.8,0.7312]
[1739402704262,0.00547955,2734.9,2734.6,3.2078]
[1739402704462,0.00547955,2734.9,2734.6,3.93905]
[1739402704864,0.00547955,2734.9,2734.6,3.2078]
[1739402705178,0.00547955,2734.9,2734.8,0.7312]
[1739402705360,0.00547955,2734.9,2734.6,3.2078]
[1739402705561,0.00547955,2734.9,2734.8,0.7312]
[1739402708267,0.00547955,2734.9,2734.8,3.939]
[1739402709359,2.151,2736.2,2734.9,1.82795]
[1739402709565,0.7309,2736.0,2735.8,0.73092]
[1739402710159,3.1978,2736.2,2735.4,3.2078]
[1739402710364,0.00547955,2736.0,2735.9,0.7309]
[1739402710560,0.00547955,2736.0,2735.9,0.73091]
[1739402711664,0.00547955,2736.0,2735.9,0.27596763]
[1739402711867,0.00547955,2736.0,2735.9,0.73091]
[1739402712070,0.00547955,2736.0,2735.9,3.93871]
[1739402712261,9.55e-06,2736.0,2735.9,3.93871]
[1739402713476,9.55e-06,2736.0,2735.9,9.93871]
[1739402714073,7.14799888,2736.9,2735.9,9.2078]
[1739402714276,19.153,2737.1,2737.0,0.73062]
[1739402714479,19.153,2737.1,2736.5,3.2078]
[1739402715374,0.73067,2736.8,2736.6,0.73071]
[1739402715673,19.15847955,2737.1,2736.6,0.73071]
[1739402715881,19.15847955,2737.1,2736.9,0.73063]
[1739402716388,19.88907955,2737.1,2736.8,0.73066]
[1739402716675,19.88908955,2737.1,2736.8,0.73066]
[1739402716978,19.15847955,2737.1,2736.5,4.2922]
[1739402717178,0.73062,2737.0,2736.6,0.7307]
[1739402717379,19.88908955,2737.1,2736.8,0.73066]
[1739402717577,19.88907955,2737.1,2736.5,4.2922]
[1739402717777,19.15847955,2737.1,2736.5,4.2922]
[1739402718170,0.73063,2737.0,2736.5,4.2922]
[1739402718377,19.15847955,2737.1,2736.7,0.73068]
[1739402718885,19.88907955,2737.1,2736.7,0.73068]
[1739402719082,19.15847955,2737.1,2736.5,4.2922]
[1739402719279,19.15847955,2737.1,2736.9,0.73063]
[1739402719481,19.15847955,2737.1,2736.5,4.2922]
[1739402719685,0.73063,2737.0,2736.7,0.73069]
[1739402719885,4.67085888,2736.9,2736.6,0.73071]
[1739402720184,3.94019888,2736.9,2736.7,0.73068]
[1739402720775,19.15847955,2737.1,2736.6,1.82682]
[1739402720978,19.15847955,2737.1,2736.9,0.73063]
[1739402721283,19.15847955,2737.1,2736.8,0.73066]
[1739402721284,19.88907955,2737.1,2736.8,0.73066]
[1739402721686,19.15847955,2737.1,2736.5,4.2922]
[1739402722183,19.15847955,2737.1,2737.0,0.73062]
[1739402723083,19.15847955,2737.1,2736.6,1.82682]
[1739402723471,19.88908955,2737.1,2736.5,4.2922]
[1739402723675,19.88907955,2737.1,2736.8,0.73065]
[1739402723877,19.15847955,2737.1,2737.0,0.73062]
[1739402724283,19.15847955,2737.1,2736.6,1.82679]
[1739402724486,5.3321,2738.3,2736.8,7.14799888]
[1739402724682,4.2537,2738.3,2738.2,0.7303]
[1739402724982,3.2078,2738.8,2738.1,3.2078]
[1739402725681,0.00547955,2738.7,2738.2,0.00547955]
[1739402726084,0.00547955,2738.7,2738.6,0.73019]
[1739402726287,3.2078,2739.5,2738.6,3.2078]
[1739402726474,3.94019888,2739.1,2738.3,4.3438]
[1739402726787,3.2078,2738.9,2738.3,3.2078]
[1739402726979,3.94019888,2738.8,2738.2,0.00547955]
[1739402727180,3.94019888,2738.8,2738.4,0.73022]
[1739402727389,3.94019888,2738.8,2738.5,0.73022]
[1739402727683,0.00547955,2738.9,2738.2,0.00547955]
[1739402727882,0.00547955,2738.9,2738.6,0.73018]
[1739402728282,0.00547955,2738.9,2738.6,0.73019]
[1739402728484,3.21327955,2738.9,2738.2,0.00547955]
[1739402728680,3.21327955,2738.9,2738.3,0.73027]
[1739402728989,3.21327955,2738.9,2738.4,0.73024]
[1739402729377,3.21327955,2738.9,2738.2,0.00547955]
[1739402729582,3.94019888,2738.8,2738.2,0.00547955]
[1739402729782,3.94019888,2738.8,2738.3,0.73025]
[1739402729979,3.94019888,2738.8,2738.2,0.00547955]
[1739402730381,3.21327955,2738.9,2738.2,0.00547955]
[1739402730382,3.2078,2738.3,2738.2,0.00547955]
[1739402730585,3.93807,2738.3,2738.2,0.00547955]
[1739402730880,4.3514,2738.3,2737.4,3.2078]
[1739402731088,4.3514,2738.3,2737.8,0.73039]
[1739402731886,4.3514,2738.3,2737.9,0.73035]
[1739402732079,4.3514,2738.3,2737.8,0.73586955]
[1739402732280,3.94019888,2738.2,2737.8,0.00547955]
[1739402732489,3.2078,2738.0,2737.8,0.00547955]
[1739402732685,1.1063,2737.9,2737.8,0.00547955]
[1739402732884,3.2513,2737.9,2737.8,0.00547955]
[1739402734091,3.2513,2737.9,2737.8,0.73587955]
[1739402734395,1.1278,2738.7,2737.8,0.73587955]
[1739402734396,3.2078,2738.8,2737.8,9.21327955]
[1739402734583,3.2078,2738.8,2738.2,3.2078]
[1739402734787,3.2078,2738.8,2738.6,0.73018]
[1739402734987,3.2078,2738.8,2738.2,3.2078]
[1739402735188,3.2078,2738.8,2738.7,0.73016]
[1739402735489,3.2078,2738.8,2738.5,0.7302]
[1739402735988,3.2078,2738.8,2738.0,3.2078]
[1739402736190,0.73017,2738.7,2738.3,0.73027]
[1739402736588,5.3528,2738.8,2738.3,0.73027]
[1739402736899,5.3528,2738.8,2737.9,3.93816]
[1739402736900,3.93806,2738.4,2737.9,3.93816]
[1739402737081,2.1814,2738.3,2737.9,3.93816]
[1739402737286,2.1814,2738.3,2737.9,0.73035]
[1739402737488,3.2078,2738.1,2737.8,0.00547955]
[1739402738188,3.2078,2738.1,2737.9,0.73036]
[1739402738494,3.2078,2738.1,2737.8,0.00547955]
[1739402738794,3.2078,2738.1,2737.8,0.73586955]
[1739402739587,3.2078,2738.1,2737.8,0.00547955]
[1739402739790,3.2078,2738.1,2737.9,0.73037]
[1739402740091,3.2078,2738.1,2737.8,0.00547955]
[1739402740293,3.2078,2738.1,2737.9,0.73038]
[1739402740483,3.2078,2738.1,2737.8,0.00547955]
[1739402740686,3.2078,2738.1,2737.9,0.73037]
[1739402740887,3.2078,2738.1,2737.8,0.00547955]
[1739402741088,2.1814,2738.3,2737.8,0.00547955]
[1739402741299,2.144,2738.2,2737.9,0.73038]
[1739402741489,2.144,2738.2,2738.1,0.73032]
[1739402741690,1.0729,2738.3,2738.2,0.7303]
[1739402742100,2.144,2738.5,2738.4,0.73024]
[1739402742793,0.73558955,2738.9,2738.8,0.73014]
[1739402742794,0.00547955,2738.9,2738.8,0.73014]
[1739402742993,2.14947955,2738.9,2738.6,0.73018]
[1739402743301,3.2078,2738.8,2738.1,3.2078]
[1739402743493,3.2078,2738.5,2738.0,1.0355]
[1739402743805,3.2078,2738.5,2738.1,0.73031]
[1739402744092,3.2078,2738.5,2738.3,0.73026]
[1739402744500,3.93803,2738.5,2738.1,0.7303]
[1739402744794,0.73026,2738.4,2738.0,1.0355]
[1739402745003,1.1263,2738.4,2738.0,1.0355]
[1739402745192,2.143,2738.3,2737.8,0.00547955]
[1739402745397,3.2078,2738.2,2737.8,0.00547955]
[1739402745797,3.2078,2738.2,2737.9,0.73038]
[1739402746002,3.93811,2738.2,2737.9,0.73038]
[1739402746299,3.2078,2738.2,2737.8,0.00547955]
[1739402746510,3.2078,2738.2,2737.9,0.73037]
[1739402746707,3.2078,2738.2,2737.8,0.00547955]
[1739402746908,3.2078,2738.2,2738.0,0.73034]
[1739402747509,3.2078,2738.2,2738.1,0.73032]
[1739402747813,3.2078,2738.2,2738.0,0.73034]
[1739402748008,3.2078,2738.2,2737.8,0.00547955]
[1739402748209,1.85655,2738.4,2737.9,3.2078]
[1739402748418,1.85655,2738.4,2738.0,0.73033]
[1739402748613,1.1263,2738.4,2738.1,0.7303]
[1739402748807,1.85655,2738.4,2738.1,0.7303]
[1739402749305,1.1263,2738.4,2738.1,0.7303]
[1739402749513,1.1263,2738.4,2738.3,0.73027]
[1739402749717,3.2078,2738.5,2738.4,0.73024]
[1739402750209,3.2078,2738.5,2738.0,1.1028]
[1739402750408,0.7303,2738.2,2738.0,1.1028]
[1739402750603,3.2078,2738.5,2738.0,1.1028]
[1739402750808,3.2078,2738.5,2737.8,0.00547955]
[1739402751012,0.73031,2738.2,2737.9,0.73037]
[1739402751205,3.2078,2738.2,2737.8,0.00547955]
[1739402751407,0.73037,2738.0,2737.8,0.00547955]
[1739402751710,1.0186,2738.1,2737.8,0.00547955]
[1739402752114,0.73037,2738.0,2737.8,0.00547955]
[1739402752415,1.0186,2738.1,2737.8,0.00547955]
[1739402752612,0.73038,2737.9,2737.8,0.00547955]
[1739402752808,1.0186,2738.1,2737.8,0.00547955]
[1739402753009,1.0186,2738.1,2737.9,0.73036]
[1739402753211,1.0186,2738.1,2737.8,0.00547955]
[1739402753412,1.0186,2738.1,2737.9,0.73035]
[1739402753608,1.0186,2738.1,2737.8,0.00547955]
[1739402753910,3.1606,2738.1,2737.8,0.00547955]
[1739402754809,3.89094,2738.1,2737.8,0.00547955]
[1739402755013,3.89094,2738.1,2737.9,0.73037]
[1739402755212,3.89094,2738.1,2737.8,0.73587955]
[1739402755213,0.73036,2738.0,2737.8,0.73587955]
[1739402755613,3.1606,2738.1,2737.8,0.00547955]
[1739402756117,3.89093,2738.1,2737.8,0.00547955]
[1739402756317,3.89093,2738.1,2737.8,0.73586955]
[1739402756811,3.1606,2738.1,2737.8,0.00547955]
[1739402757014,3.1606,2738.1,2737.9,0.73037]
[1739402757413,3.2078,2738.2,2737.8,0.00547955]
[1739402757619,4.2269,2738.5,2737.8,0.00547955]
[1739402757808,4.2269,2738.5,2738.1,0.73032]
[1739402758113,8.17296883,2738.5,2738.1,0.73032]
[1739402758315,0.73032,2738.2,2737.9,0.73037]
[1739402758515,9.99852883,2738.5,2737.8,0.00547955]
[1739402758516,0.73036,2738.0,2737.8,0.00547955]
[1739402758708,0.73033,2738.1,2737.8,0.73586955]
[1739402758913,3.9381,2738.2,2737.8,0.00547955]
[1739402759111,3.2078,2738.2,2738.0,0.73035]
[1739402759318,3.9381,2738.2,2738.0,0.73035]
[1739402759714,3.9381,2738.2,2737.9,0.73037]
[1739402759715,0.73033,2738.1,2737.9,0.73037]
[1739402759922,0.73036,2738.0,2737.8,0.00547955]
[1739402760222,3.2078,2738.2,2737.8,0.00547955]
[1739402760423,0.73034,2738.1,2737.8,0.73586955]
[1739402760724,3.2078,2738.2,2737.8,0.73586955]
[1739402760928,0.73035,2738.1,2737.8,0.73586955]
[1739402761320,3.2078,2738.2,2737.8,0.00547955]
[1739402761620,3.93811,2738.2,2737.9,0.73037]
[1739402761821,3.2078,2738.2,2737.8,0.00547955]
[1739402762020,0.73033,2738.1,2737.8,0.00547955]
[1739402762421,3.2078,2738.2,2737.8,0.00547955]
[1739402762922,3.2078,2738.2,2738.1,0.73032]
[1739402763121,2.14,2738.2,2738.1,0.7303]
[1739402764327,0.50958621,2738.4,2737.9,1.82593]
[1739402764518,4.2269,2738.5,2738.0,1.02]
[1739402764826,5.3478,2738.8,2738.0,3.1305]
[1739402765026,5.3478,2738.8,2738.7,0.73016]
[1739402766720,5.3478,2738.8,2738.6,0.73018]
[1739402768418,0.00547955,2738.9,2738.5,3.2078]
[1739402768723,0.00547955,2738.9,2738.8,3.93794]
[1739402769633,0.00547955,2738.9,2738.6,1.74497]
[1739402769821,0.00547955,2738.9,2738.8,0.73014]
[1739402770931,0.00547955,2738.9,2738.6,1.0148]
[1739402771227,0.00547955,2738.9,2738.8,0.73014]
[1739402771527,0.00547955,2738.9,2738.6,1.0148]
[1739402771727,0.00547955,2738.9,2738.8,0.73014]
[1739402772025,0.00547955,2738.9,2738.5,5.0333]
[1739402772026,0.00547955,2738.9,2738.5,3.2078]
[1739402772225,0.00547955,2738.9,2738.2,2.1748]
[1739402772226,3.94606883,2738.8,2738.2,3.2078]
[1739402772535,3.1678,2738.7,2738.2,3.2078]
[1739402772722,3.1678,2738.7,2738.3,0.73027]
[1739402772922,1.1077,2738.6,2738.2,3.2078]
[1739402773227,1.1077,2738.6,2738.5,0.73022]
[1739402773529,1.1077,2738.6,2738.2,3.2078]
[1739402773727,1.1077,2738.6,2738.5,0.73022]
[1739402774121,1.1077,2738.6,2738.2,3.2078]
[1739402774319,1.1077,2738.6,2738.4,0.73023]
[1739402774530,1.1077,2738.6,2738.5,0.73022]
[1739402775229,1.1077,2738.6,2738.3,0.73026]
[1739402775633,1.1077,2738.6,2738.5,0.73022]
[1739402776235,1.1077,2738.6,2738.1,1.0475]
[1739402776532,1.1077,2738.6,2738.4,0.73023]
[1739402776725,1.1077,2738.6,2737.9,3.2078]
[1739402776928,1.1077,2738.6,2738.0,1.82588]
[1739402777124,2.138,2738.7,2738.5,0.73022]
[1739402777426,2.138,2738.7,2738.6,0.73019]
[1739402778835,2.138,2738.7,2737.9,3.2078]
[1739402779033,2.138,2738.7,2738.5,0.7302]
[1739402779735,2.138,2738.7,2738.1,1.82582]
[1739402780032,2.138,2738.7,2738.5,0.73021]
[1739402780233,3.2078,2738.6,2737.9,3.2078]
[1739402780435,1.0685,2738.5,2737.9,3.2078]
[1739402780638,0.73028,2738.3,2738.0,0.73034]
[1739402780830,0.73027,2738.3,2738.1,0.73032]
[1739402781030,0.73027,2738.3,2738.0,0.73034]
[1739402781237,1.0276,2738.4,2737.9,3.2078]
[1739402781427,0.73038,2737.9,2737.8,0.00547955]
[1739402781733,6.08206883,2737.9,2736.8,4.95384]
[1739402781932,3.93827,2737.6,2736.8,4.95384]
[1739402782139,2.136,2737.9,2737.3,3.2078]
[1739402782337,2.136,2737.9,2737.4,2.83965]
[1739402782525,2.136,2737.9,2737.8,0.7304]
[1739402782729,2.14147955,2737.9,2737.7,0.73041]
[1739402783135,0.00547955,2737.9,2737.4,1.01887955]
[1739402783331,0.00547955,2737.9,2737.8,0.7304]
[1739402783531,3.2078,2738.7,2738.0,1.82588]
[1739402783840,3.2078,2738.7,2738.4,0.73023]
[1739402784340,3.94606883,2738.5,2737.8,1.0332]
[1739402784540,3.2078,2738.4,2737.8,1.0332]
[1739402784833,1.03,2738.3,2737.8,1.0332]
[1739402785038,1.03,2738.3,2738.0,0.73034]
[1739402785427,3.165,2738.3,2738.0,0.73034]
[1739402785827,3.89528,2738.3,2737.8,1.0332]
[1739402786031,3.21327955,2738.4,2738.0,3.2078]
[1739402786234,3.21327955,2738.4,2738.3,0.73027]
[1739402787033,0.00547955,2738.4,2738.3,0.73027]
[1739402788342,0.00547955,2738.4,2738.0,3.2078]
[1739402788533,0.00224863,2738.4,2737.8,1.0332]
[1739402788733,0.00224863,2738.4,2738.1,0.7303]
[1739402788938,3.94029863,2738.4,2738.0,0.73034]
[1739402789334,0.73028,2738.3,2737.8,1.0332]
[1739402789534,0.73028,2738.3,2737.9,0.73037]
[1739402789734,3.2078,2738.0,2737.4,0.00547955]
[1739402790038,6.08006883,2738.2,2737.4,0.00547955]
[1739402790039,0.73048,2737.5,2737.4,0.00547955]
[1739402790237,3.2078,2737.7,2737.4,0.00547955]
[1739402790544,0.73048,2737.5,2737.4,0.00547955]
[1739402790741,1.0358,2737.6,2737.4,0.00547955]
[1739402792237,1.76626,2737.6,2737.4,0.00547955]
[1739402792631,1.0358,2737.6,2737.4,0.00547955]
[1739402792843,1.0358,2737.6,2737.5,0.73048]
[1739402793137,1.0358,2737.6,2737.4,0.00547955]
[1739402793338,1.0358,2737.6,2737.5,0.73048]
[1739402794046,1.0358,2737.6,2737.5,0.7271611]
[1739402794247,1.0358,2737.6,2737.4,0.00547955]
[1739402794740,1.0358,2737.6,2737.4,0.73598955]
[1739402794934,1.0358,2737.6,2737.5,0.73048]
[1739402795540,1.0358,2737.6,2737.4,0.00547955]
[1739402796041,1.0358,2737.6,2737.5,0.73048]
[1739402796237,1.0358,2737.6,2737.4,0.00547955]
[1739402796437,0.73048,2737.5,2737.4,0.00547955]
[1739402796641,2.86348,2737.5,2737.4,0.00547955]
[1739402797040,2.133,2737.5,2737.4,0.00547955]
[1739402797649,2.133,2737.5,2737.4,0.73598955]
[1739402797850,2.133,2737.5,2737.4,0.00547955]
[1739402798248,2.86348,2737.5,2737.4,0.00547955]
[1739402798444,2.133,2737.5,2737.4,0.00547955]
[1739402799951,2.133,2737.5,2737.4,0.29018753]
[1739402800145,2.133,2737.5,2737.4,0.73051]
[1739402800443,3.2018,2738.2,2737.5,1.82622]
[1739402800643,3.2078,2738.1,2737.6,1.0515]
[1739402800848,3.2018,2738.2,2738.1,0.73032]
[1739402801047,2.133,2738.2,2737.7,2.85608]
[1739402801249,2.133,2738.2,2738.0,0.73033]
[1739402801449,5.3408,2738.2,2738.0,0.73033]
[1739402801750,6.07111,2738.2,2737.9,0.00547955]
[1739402802051,0.73034,2738.1,2737.9,0.00547955]
[1739402802250,0.73035,2738.0,2737.9,0.00547955]
[1739402802848,1.0688,2738.1,2737.9,0.00547955]
[1739402803145,3.2008,2738.1,2737.9,0.00547955]
[1739402803450,3.93113,2738.1,2737.9,0.00547955]
[1739402803650,1.0688,2738.1,2737.9,0.00547955]
[1739402803951,1.0688,2738.1,2738.0,0.73035]
[1739402804150,1.0688,2738.1,2737.9,0.73584955]
[1739402804339,1.0688,2738.1,2737.9,0.00547955]
[1739402805049,1.0688,2738.1,2737.9,0.73583955]
[1739402805650,1.0688,2738.1,2737.9,0.00547955]
[1739402805951,3.1765,2738.3,2737.9,0.00547955]
[1739402806243,3.1765,2738.3,2737.9,0.00217238]
[1739402806451,4.2338,2738.3,2738.1,0.73031]
[1739402806848,4.2338,2738.3,2738.0,0.73034]
[1739402807038,3.2078,2738.2,2738.0,0.73034]
[1739402807245,3.2078,2738.2,2738.1,0.73032]
[1739402807648,3.2078,2738.2,2738.0,0.73034]
[1739402807851,3.93811,2738.2,2737.9,0.73255238]
[1739402808345,3.93811,2738.2,2737.9,0.00217238]
[1739402808553,3.93811,2738.2,2737.9,0.73254238]
[1739402809053,3.2078,2738.2,2737.9,0.00217238]
[1739402809246,0.73035,2738.0,2737.9,0.00217238]
[1739402813148,0.73035,2738.0,2737.9,0.00086114]
[1739402813347,2.13,2738.0,2737.9,0.73124114]
[1739402814357,3.2078,2738.2,2737.9,0.00086114]
[1739402814651,5.3378,2738.2,2737.9,0.00086114]
[1739402814846,5.3378,2738.2,2738.1,0.73032]
[1739402815258,5.3378,2738.2,2737.7,2.79737]
[1739402815459,6.0681,2738.2,2737.9,0.73036]
[1739402815660,5.3378,2738.2,2737.7,0.9713]
[1739402815849,5.3378,2738.2,2738.0,0.73034]
[1739402816053,5.3378,2738.2,2737.9,0.73036]
[1739402816561,5.3378,2738.2,2737.7,0.97677955]
[1739402816857,5.3378,2738.2,2737.9,0.73035]
[1739402817052,0.73032,2738.1,2737.7,1.70718955]
[1739402817253,0.73037,2738.0,2737.7,0.00547955]
[1739402817458,0.73038,2737.9,2737.7,0.00547955]
[1739402817666,3.93818,2737.9,2737.7,0.00547955]
[1739402817862,0.7304,2737.8,2737.7,0.00547955]
[1739402818051,1.7191,2737.8,2737.7,0.00547955]
[1739402818662,1.7191,2737.8,2737.7,0.00217246]
[1739402819664,0.9887,2737.8,2737.7,0.00217246]
[1739402820460,1.7191,2737.8,2737.7,0.00217246]
[1739402820653,0.9887,2737.8,2737.7,0.00217246]
[1739402820858,3.1167,2737.8,2737.7,0.00217246]
[1739402824672,3.1167,2737.8,2737.6,0.29044732]
[1739402824962,3.2078,2738.2,2738.0,0.73033]
[1739402825176,2.127,2738.1,2738.0,0.73033]
[1739402826162,2.127,2738.1,2737.9,1.0577]
[1739402826366,2.127,2738.1,2737.8,0.00547955]
[1739402826560,3.93818,2737.9,2737.8,0.00547955]
[1739402826872,2.127,2738.1,2738.0,0.73035]
[1739402829865,2.127,2738.1,2738.0,0.29258182]
[1739402831470,3.2078,2738.2,2738.1,0.73032]
[1739402832072,3.2078,2738.2,2737.8,0.00547955]
[1739402832279,3.87935275,2737.9,2737.8,0.00547955]
[1739402832575,5.27497275,2737.9,2737.8,0.00547955]
[1739402833369,6.00535275,2737.9,2737.8,0.00547955]
[1739402833769,5.27497275,2737.9,2737.8,0.00547955]
[1739402834483,6.00535275,2737.9,2737.8,0.00547955]
[1739402835171,5.7848174,2737.9,2737.8,0.00547955]
[1739402835483,8.9926174,2737.9,2737.2,5.03419]
[1739402835676,8.9926174,2737.9,2737.6,0.73044]
[1739402835885,8.9926174,2737.9,2737.2,5.03419]
[1739402835886,8.48277275,2737.9,2737.2,3.2078]
[1739402836178,0.73041,2737.8,2737.4,0.7305]
[1739402836379,3.2078,2737.6,2737.3,0.73053]
[1739402837072,8.48277275,2737.9,2737.2,0.00326455]
[1739402837278,3.2078,2737.7,2737.4,0.7305]
[1739402837479,3.2078,2737.7,2737.2,0.00326455]
[1739402837679,3.2078,2737.7,2737.3,0.73052]
[1739402837882,3.93823,2737.7,2737.3,0.73052]
[1739402838082,3.93825,2737.7,2737.3,0.73054]
[1739402838280,3.2078,2737.7,2737.2,0.00326455]
[1739402838783,3.2078,2737.7,2737.4,0.73049]
[1739402839286,0.73052,2737.4,2737.2,0.00326455]
[1739402839578,4.18737275,2737.3,2737.2,0.00326455]
[1739402840984,4.18737275,2737.3,2737.2,0.73382455]
[1739402841184,4.18737275,2737.3,2737.2,0.00326455]
[1739402841586,6.31137275,2737.3,2737.2,0.73382455]
[1739402841792,3.2078,2737.4,2737.2,0.73382455]
[1739402841793,3.1425,2737.6,2737.5,0.73048]
[1739402842086,3.1425,2737.6,2737.3,3.0529]
[1739402842290,6.29147275,2737.6,2737.3,2.80182]
[1739402842489,0.73049,2737.5,2737.3,1.0247]
[1739402842886,3.2078,2737.4,2737.2,0.00326455]
[1739402843191,1.0675,2737.4,2737.2,0.73382455]
[1739402843490,5.00582,2737.4,2737.2,0.00326455]
[1739402845195,4.2753,2737.4,2737.2,0.00326455]
[1739402845398,0.73054,2737.3,2737.2,0.00326455]
[1739402845584,5.00583,2737.4,2737.2,0.00326455]
[1739402845788,4.2753,2737.4,2737.2,0.00326455]
[1739402845987,4.2753,2737.4,2737.2,0.73381455]
[1739402846496,3.14897275,2737.3,2737.2,0.00326455]
[1739402846791,3.14897275,2737.3,2735.0,2.79006535]
[1739402846792,0.73081,2736.3,2735.4,2.11963557]
[1739402846996,3.14897275,2736.3,2735.6,1.0498]
[1739402847193,3.2078,2736.1,2735.7,0.73094]
[1739402847387,3.93868,2736.1,2735.6,1.78078]
[1739402847593,0.7309,2736.0,2735.6,1.0498]
[1739402847893,3.14897275,2736.0,2735.6,1.0498]
[1739402848089,3.14897275,2736.0,2735.3,1.0233]
[1739402848292,3.2078,2735.8,2735.3,1.0233]
[1739402848487,3.14897275,2735.7,2735.3,1.0233]
[1739402849089,3.14897275,2735.7,2735.5,0.73101]
[1739402849588,3.14897275,2735.7,2735.4,0.73103]
[1739402849995,3.14897275,2735.7,2735.3,1.0233]
[1739402850199,3.14897275,2735.7,2735.4,0.73103]
[1739402850498,3.14897275,2735.7,2735.5,0.73101]
[1739402850993,3.14897275,2735.7,2735.4,0.73104]
[1739402851302,3.2078,2735.5,2735.1,1.063]
[1739402851495,3.2078,2735.5,2735.3,0.73107]
[1739402851691,3.2078,2735.5,2735.2,0.73108]
[1739402851892,3.2078,2735.5,2735.1,1.063]
[1739402852096,3.2078,2735.5,2735.3,0.73106]
[1739402852299,3.2078,2735.5,2735.1,1.063]
[1739402852503,3.88003275,2735.4,2735.1,1.063]
[1739402852700,3.2078,2735.2,2734.6,3.2078]
[1739402852897,3.14897275,2735.1,2734.6,3.49374297]
[1739402853096,3.14897275,2735.1,2734.8,0.7312]
[1739402853295,3.14897275,2735.1,2734.6,3.49374297]
[1739402853496,3.14897275,2735.1,2734.7,0.73123]